bitfinex/quotes_ETHUSD_20251125
["timestamp","ask_amount","ask_price","bid_price","bid_amount"]
[1764083082102,0.235,2864.7,2863.5,0.455]
[1764083083340,0.6234,2864.7,2863.5,0.455]
[1764083083831,10.70732638,2864.7,2863.5,3.94722077]
[1764083084032,7.21653384,2864.7,2863.5,7.43945055]
[1764083084240,7.21653384,2864.7,2863.6,0.455]
[1764083084751,7.21655946,2864.7,2863.6,0.455]
[1764083084958,10.707352,2864.7,2863.6,0.455]
[1764083085133,0.1295,2864.6,2863.6,0.455]
[1764083085334,0.235,2864.7,2863.6,0.455]
[1764083085624,0.235,2864.7,2863.7,10.47595767]
[1764083086043,0.235,2864.7,2863.8,0.455]
[1764083086453,0.235,2865.0,2863.8,0.455]
[1764083087249,0.235,2865.0,2864.1,0.09436]
[1764083087462,0.235,2865.0,2864.2,0.455]
[1764083087761,0.235,2865.0,2864.3,6.9825088]
[1764083087928,0.235,2865.0,2864.2,7.43769301]
[1764083088248,3.72465122,2865.0,2864.2,3.94631671]
[1764083088448,3.72465122,2865.0,2864.2,3.94629805]
[1764083088449,7.21510244,2865.0,2864.2,3.94629805]
[1764083088662,3.4895488,2865.7,2864.2,3.49129805]
[1764083088828,0.235,2865.6,2864.2,3.94629805]
[1764083089032,0.6234,2865.6,2864.2,7.43767435]
[1764083089430,0.6234,2865.6,2864.3,3.4912544]
[1764083089656,10.46937705,2865.5,2864.2,3.94631451]
[1764083089957,10.85777705,2865.5,2864.2,3.94631451]
[1764083090131,0.3884,2865.4,2864.2,3.94631451]
[1764083090641,0.3884,2865.4,2864.2,0.455]
[1764083091044,10.46937705,2865.5,2863.4,0.90789411]
[1764083091045,6.9795847,2865.5,2864.1,0.4652]
[1764083091244,10.46937705,2865.5,2864.2,0.4652]
[1764083091643,6.98007188,2865.3,2864.2,0.4652]
[1764083091880,13.96014376,2865.3,2863.7,0.4652]
[1764083092024,0.3884,2865.2,2863.7,0.4652]
[1764083092363,0.235,2865.1,2863.7,0.4652]
[1764083092650,4.16094586,2865.0,2863.4,3.67461742]
[1764083092829,4.54934586,2865.0,2863.5,0.4652]
[1764083093033,0.1295,2864.9,2863.5,0.4652]
[1764083093426,0.1295,2864.9,2863.6,0.03492107]
[1764083093625,3.49064507,2864.8,2863.8,6.9837279]
[1764083093953,3.49062064,2864.9,2863.8,10.47559185]
[1764083094160,3.72529823,2865.1,2863.9,0.4652]
[1764083094351,7.21559646,2865.1,2863.9,0.4652]
[1764083094538,3.72529823,2865.1,2863.9,0.4652]
[1764083094732,10.70589469,2865.1,2863.9,0.4652]
[1764083094937,7.21559646,2865.1,2863.9,0.4652]
[1764083095133,10.70589469,2865.1,2863.9,0.4652]
[1764083095761,14.19619292,2865.1,2863.9,0.4652]
[1764083095933,0.3884,2865.0,2863.7,3.49190993]
[1764083096134,1.10779721,2865.0,2863.7,3.49190993]
[1764083096334,0.1295,2864.9,2863.7,3.49190993]
[1764083096541,0.1295,2864.9,2863.6,3.49208534]
[1764083096829,0.1295,2864.9,2863.7,0.4652]
[1764083097864,6.98129014,2864.8,2863.8,3.49186395]
[1764083098040,6.98129014,2864.8,2863.7,3.95714289]
[1764083098235,0.72374216,2864.7,2863.7,3.95714289]
[1764083098453,0.95774216,2864.6,2863.8,0.4652]
[1764083098647,0.234,2864.6,2863.8,0.4652]
[1764083098965,0.72370829,2864.5,2863.8,0.4652]
[1764083099259,0.72370829,2864.4,2863.8,0.4652]
[1764083099425,0.234,2864.6,2863.8,0.4652]
[1764083099632,0.72422875,2864.5,2863.4,0.1823]
[1764083099836,3.4912544,2864.3,2863.5,0.4674]
[1764083100067,6.9825088,2864.3,2863.5,0.4674]
[1764083100241,3.4912544,2864.3,2863.5,0.4674]
[1764083100443,6.9825088,2864.3,2863.5,0.4674]
[1764083100644,0.1295,2863.6,2863.1,0.1823]
[1764083100844,0.234,2863.5,2862.3,0.4674]
[1764083101678,0.234,2863.5,2863.4,0.1985]
[1764083101838,3.49198589,2863.7,2863.1,0.1985]
[1764083102037,0.1295,2863.8,2863.1,0.1985]
[1764083102038,3.49189278,2863.8,2863.2,0.4674]
[1764083102445,0.234,2863.9,2863.2,0.4674]
[1764083102647,0.234,2863.9,2863.3,0.4674]
[1764083102975,0.3635,2863.9,2863.1,3.69113182]
[1764083103160,3.85525307,2863.9,2863.1,3.69113182]
[1764083103471,3.85525307,2863.9,2863.1,4.15853182]
[1764083103643,0.234,2863.9,2863.2,0.4674]
[1764083103838,6.98397178,2863.7,2861.0,3.50072928]
[1764083104150,0.90510394,2863.2,2862.1,0.4674]
[1764083104361,0.234,2863.1,2862.1,0.1985]
[1764083104682,0.234,2863.1,2862.2,0.4674]
[1764083104838,0.90510394,2862.9,2861.7,0.4674]
[1764083105041,0.3884,2863.0,2861.6,0.001]
[1764083105042,0.90510394,2862.7,2861.6,0.001]
[1764083105374,0.90510394,2862.3,2861.6,0.001]
[1764083105743,0.3884,2862.3,2861.6,0.001]
[1764083105949,0.1295,2861.7,2861.6,0.001]
[1764083106170,0.3635,2861.7,2861.6,0.001]
[1764083106790,0.234,2861.7,2861.6,0.001]
[1764083107417,0.234,2862.4,2861.6,0.4684]
[1764083107890,3.49369388,2862.3,2861.6,0.4684]
[1764083108092,6.98738776,2862.3,2861.6,0.001]
[1764083108301,3.72757551,2862.4,2861.6,0.001]
[1764083108797,7.22115102,2862.4,2861.6,3.96287966]
[1764083108978,3.72757551,2862.4,2861.6,3.96287966]
[1764083109162,7.22115102,2862.4,2861.6,0.001]
[1764083109365,10.71472653,2862.4,2861.6,0.001]
[1764083109793,7.22115102,2862.4,2861.6,0.001]
[1764083110005,0.90510394,2863.5,2862.3,0.1985]
[1764083110165,0.3884,2864.1,2862.3,0.1985]
[1764083110166,0.3635,2863.8,2862.3,0.1985]
[1764083110496,3.85542274,2863.8,2862.4,0.4674]
[1764083110862,0.3884,2863.7,2862.4,0.4674]
[1764083111304,4.13839796,2863.7,2862.3,0.1985]
[1764083111510,0.3884,2863.7,2862.4,0.4674]
[1764083111667,0.234,2863.8,2862.5,0.03493449]
[1764083111867,3.72586395,2863.8,2862.5,3.49344978]
[1764083112069,3.72586395,2863.8,2862.5,10.94774934]
[1764083112394,7.21693931,2863.8,2862.6,0.4674]
[1764083113265,0.3884,2863.7,2862.5,3.49344978]
[1764083113464,7.21693931,2863.8,2862.6,0.4674]
[1764083113703,0.3884,2863.7,2862.5,3.49344978]
[1764083113867,3.49210783,2863.6,2862.4,3.49357182]
[1764083114198,0.2332,2863.8,2862.6,0.4674]
[1764083114199,3.72507304,2863.8,2862.6,0.4674]
[1764083114396,0.90510394,2864.6,2863.7,0.1985]
[1764083114574,0.9535218,2864.5,2863.7,0.1985]
[1764083114798,0.233,2864.5,2863.7,0.6659]
[1764083115523,0.233,2864.5,2863.8,0.4674]
[1764083115890,0.233,2864.5,2863.9,3.49174203]
[1764083116098,0.233,2864.5,2863.8,0.4674]
[1764083116321,0.233,2864.5,2864.4,0.1985]
[1764083116621,0.1295,2864.8,2863.9,0.4674]
[1764083117321,0.233,2864.9,2863.9,0.4674]
[1764083117693,3.72352631,2864.9,2863.9,0.4674]
[1764083118020,3.72352631,2864.9,2864.0,3.49162011]
[1764083118021,3.49076692,2864.7,2864.0,3.49162011]
[1764083118192,0.233,2864.9,2864.0,6.98324022]
[1764083118392,0.233,2864.9,2864.1,0.4674]
[1764083118601,3.72352383,2864.9,2864.1,0.4674]
[1764083119018,7.21404766,2864.9,2864.1,0.4674]
[1764083119227,7.34354766,2864.9,2864.1,0.4674]
[1764083119612,7.34354766,2864.9,2863.9,3.49169137]
[1764083119926,7.34354766,2864.9,2863.5,3.49216602]
[1764083119927,6.98153384,2864.7,2863.3,0.1985]
[1764083120222,6.98153384,2864.7,2863.3,0.6712]
[1764083120422,3.85305848,2864.9,2863.4,0.4727]
[1764083120591,0.233,2864.9,2863.5,0.32736]
[1764083120791,0.002,2865.1,2863.5,0.32736]
[1764083120792,0.002,2865.1,2864.4,4.15929865]
[1764083120996,0.002,2865.4,2864.9,0.72559411]
[1764083121295,0.002,2865.4,2864.8,4.15929865]
[1764083121296,3.72125622,2866.8,2865.5,0.09436]
[1764083121494,3.72125622,2866.8,2865.3,0.1951]
[1764083121495,0.233,2866.8,2865.3,0.1951]
[1764083121725,3.72129028,2866.8,2865.4,0.4727]
[1764083121901,6.97593302,2867.0,2865.4,3.96257975]
[1764083122091,2.279522,2866.8,2865.3,0.1951]
[1764083122296,2.279522,2866.8,2865.0,0.4727]
[1764083122297,4.15929865,2866.6,2865.0,0.4727]
[1764083122523,4.15929865,2866.2,2864.9,0.1951]
[1764083122739,0.95418309,2866.1,2864.9,0.1951]
[1764083122934,4.15929865,2865.8,2865.0,0.1951]
[1764083123094,0.233,2866.4,2865.0,0.6678]
[1764083123293,4.15929865,2866.2,2865.0,0.1951]
[1764083123521,0.233,2866.4,2864.7,0.1951]
[1764083123522,4.15929865,2865.8,2864.7,0.1951]
[1764083123730,0.3665,2865.7,2864.7,0.1951]
[1764083123919,6.97934114,2865.6,2864.4,0.1951]
[1764083124127,10.46901171,2865.6,2864.4,0.1951]
[1764083124426,0.3924,2865.5,2864.4,0.1951]
[1764083124835,0.3924,2865.5,2864.2,0.4727]
[1764083125322,10.58029315,2865.4,2864.1,0.1951]
[1764083125509,0.3924,2865.5,2864.1,0.1951]
[1764083125709,10.46901171,2865.6,2864.2,0.4727]
[1764083125935,10.46974242,2865.4,2864.2,0.4727]
[1764083126113,10.46974242,2865.4,2864.1,0.1951]
[1764083126316,6.97982828,2865.4,2865.0,0.001]
[1764083126520,10.46974242,2865.4,2865.0,0.001]
[1764083126942,0.3924,2865.3,2865.0,0.001]
[1764083127109,0.233,2865.2,2865.0,0.001]
[1764083127607,0.6254,2865.2,2865.0,0.001]
[1764083127917,3.49027957,2865.1,2865.0,0.001]
[1764083128104,3.88267957,2865.1,2865.0,0.001]
[1764083128540,3.49027957,2865.1,2865.0,0.001]
[1764083128901,3.88267957,2865.1,2865.0,0.001]
[1764083129343,3.49027957,2865.1,2865.0,0.001]
[1764083129507,0.233,2865.2,2865.0,0.001]
[1764083129940,3.72315971,2865.2,2865.0,0.001]
[1764083130196,0.1335,2865.7,2865.0,0.001]
[1764083130481,0.1295,2866.9,2865.1,0.4727]
[1764083130634,2.53413703,2868.0,2866.5,0.1951]
[1764083130635,4.83218715,2867.9,2866.5,0.1951]
[1764083130837,3.48791355,2867.1,2866.5,0.1951]
[1764083131035,0.3625,2866.7,2865.6,0.4727]
[1764083131234,0.233,2866.7,2865.6,0.4727]
[1764083131456,0.3924,2867.6,2865.7,1.36409811]
[1764083131457,3.48755514,2867.4,2865.7,1.36409811]
[1764083131663,0.002,2868.1,2865.7,1.36409811]
[1764083131969,0.233,2867.9,2866.5,0.405504]
[1764083132172,0.002,2868.1,2866.9,0.405504]
[1764083132335,0.002,2868.1,2868.0,0.1951]
[1764083132663,0.002,2868.1,2867.0,0.4727]
[1764083133034,0.002,2868.1,2868.0,0.1951]
[1764083133231,0.002,2868.1,2867.4,0.1951]
[1764083133669,0.002,2868.1,2867.5,0.4727]
[1764083134032,0.002,2868.1,2867.6,6.97447342]
[1764083134236,0.002,2868.1,2867.7,0.72559411]
[1764083134437,0.002,2868.1,2867.7,1.19829411]
[1764083134770,0.002,2868.1,2867.4,0.6678]
[1764083134934,0.002,2868.1,2867.5,0.72559411]
[1764083135143,0.002,2868.1,2867.4,4.15527946]
[1764083135336,0.002,2868.1,2866.9,3.9607749]
[1764083135549,0.002,2868.1,2866.9,6.97616307]
[1764083135867,0.002,2868.1,2867.0,1.19829411]
[1764083136073,0.002,2868.1,2867.1,3.48782359]
[1764083136241,0.002,2868.1,2867.3,0.405504]
[1764083136242,0.0012,2868.1,2867.3,0.405504]
[1764083136870,0.0012,2868.1,2867.2,0.72559411]
[1764083137070,0.0012,2868.1,2867.3,0.4727]
[1764083138191,0.0012,2868.1,2867.3,7.4478841]
[1764083138380,0.0012,2868.1,2867.3,0.4727]
[1764083138576,0.0012,2868.1,2867.3,3.96029087]
[1764083138967,0.0012,2868.1,2867.4,1.60379811]
[1764083139195,0.002,2868.7,2868.1,0.1951]
[1764083139361,0.002,2868.7,2868.2,0.4727]
[1764083139792,0.002,2868.7,2868.3,0.405504]
[1764083139993,0.002,2868.7,2868.6,3.48602105]
[1764083140496,0.002,2868.7,2867.7,0.1951]
[1764083140662,0.002,2868.7,2867.9,0.09436]
[1764083140861,0.002,2868.7,2867.9,0.405504]
[1764083141138,0.002,2868.7,2868.0,0.4727]
[1764083141275,0.002,2868.7,2868.1,0.638504]
[1764083141478,0.002,2868.7,2868.3,0.09436]
[1764083141993,0.002,2868.7,2868.6,4.61711916]
[1764083142162,0.002,2868.7,2868.6,4.68431516]
[1764083142509,0.002,2868.7,2867.7,0.1951]
[1764083142675,0.002,2868.7,2868.0,0.4727]
[1764083143802,0.002,2868.7,2868.4,0.405504]
[1764083144008,0.002,2868.7,2868.2,6.97301442]
[1764083144161,0.002,2868.7,2868.3,0.72559411]
[1764083144930,0.002,2868.7,2868.4,0.4727]
[1764083145640,0.002,2868.7,2867.9,0.233]
[1764083145641,0.002,2868.7,2867.9,0.72559411]
[1764083145842,0.002,2868.7,2867.9,1.19829411]
[1764083146043,0.002,2868.7,2868.0,6.97350068]
[1764083146202,0.002,2868.7,2868.0,3.48675034]
[1764083146539,0.002,2868.7,2867.7,3.48705877]
[1764083146736,0.002,2868.7,2867.7,6.97417387]
[1764083146920,0.002,2868.7,2867.8,0.4727]
[1764083147331,0.002,2868.7,2867.7,3.48705877]
[1764083147512,0.002,2868.7,2867.7,6.97417387]
[1764083148040,0.002,2868.7,2867.7,3.48705877]
[1764083148244,0.002,2868.7,2867.5,0.1951]
[1764083148245,0.002,2868.7,2867.6,11.18730424]
[1764083148451,0.002,2868.7,2867.7,0.4727]
[1764083148603,0.002,2868.7,2867.8,0.731864]
[1764083148920,0.002,2868.7,2867.9,0.4727]
[1764083149116,0.002,2868.7,2868.0,0.405504]
[1764083149544,0.002,2868.7,2868.0,0.878204]
[1764083149732,0.002,2868.7,2868.1,0.09436]
[1764083149933,0.002,2868.7,2868.1,0.4727]
[1764083150136,0.002,2868.7,2868.6,3.48602105]
[1764083150315,0.002,2868.7,2868.6,3.89152505]
[1764083150633,0.002,2868.7,2868.5,0.72559411]
[1764083150845,0.002,2868.7,2868.6,0.4973]
[1764083151613,0.002,2869.0,2868.6,0.4973]
[1764083151614,0.002,2869.0,2868.7,0.499864]
[1764083151830,0.002,2869.0,2868.8,0.232]
[1764083152013,0.002,2869.0,2868.9,0.4973]
[1764083152212,0.002,2869.0,2868.9,3.98295652]
[1764083152739,0.002,2869.0,2868.9,5.20841463]
[1764083152942,0.002,2869.3,2869.2,0.499864]
[1764083153151,0.002,2869.3,2869.2,1.192164]
[1764083153355,0.002,2869.3,2869.2,0.6923]
[1764083153549,0.002,2869.3,2869.2,0.195]
[1764083154141,0.002,2869.3,2868.9,0.95759411]
[1764083154445,0.002,2869.3,2868.8,0.195]
[1764083154803,0.002,2869.3,2868.9,0.4973]
[1764083155046,0.002,2869.3,2868.8,0.195]
[1764083155548,0.002,2869.3,2868.8,4.17805247]
[1764083155760,0.002,2869.3,2868.8,0.6923]
[1764083155916,0.002,2869.3,2868.6,0.72559411]
[1764083156302,0.002,2869.3,2869.2,0.600504]
[1764083156512,0.002,2869.3,2869.2,0.6923]
[1764083157502,0.002,2869.3,2868.9,0.195]
[1764083157929,0.002,2869.3,2868.9,0.6923]
[1764083158236,0.002,2869.3,2869.0,3.48553502]
[1764083158410,0.002,2869.3,2869.0,7.44677004]
[1764083158610,0.002,2869.3,2869.1,0.4757]
[1764083159602,0.002,2869.3,2869.2,0.09436]
[1764083159807,0.002,2869.3,2869.2,0.57006]
[1764083160238,0.0012,2869.3,2869.2,0.4757]
[1764083160558,0.0012,2869.3,2868.9,3.91261692]
[1764083160559,0.0012,2869.3,2868.9,0.195]
[1764083160841,0.0012,2869.3,2868.7,0.1954]
[1764083160842,0.72534109,2869.2,2868.7,0.1954]
[1764083161007,0.72534109,2869.1,2868.2,0.4757]
[1764083161214,0.90510394,2868.9,2868.2,0.4757]
[1764083161534,0.90510394,2868.9,2868.1,3.71862877]
[1764083161535,0.72534109,2868.8,2868.1,3.48662877]
[1764083161734,0.72534109,2868.8,2868.0,0.427]
[1764083161735,1.63044503,2868.7,2868.0,0.195]
[1764083161921,0.90510394,2868.5,2867.6,3.48721065]
[1764083162134,1.63044503,2868.4,2867.5,3.68242967]
[1764083162449,0.90510394,2868.1,2867.1,0.1954]
[1764083162749,0.72534109,2868.0,2867.1,0.1954]
[1764083162929,0.72534109,2867.9,2867.1,0.1954]
[1764083163247,0.72534109,2867.8,2867.2,0.4757]
[1764083163408,0.72534109,2867.7,2867.3,0.09436]
[1764083163615,0.90510394,2868.1,2867.3,0.09436]
[1764083163810,0.72630618,2868.0,2867.4,0.4757]
[1764083164119,0.72630618,2867.9,2867.4,0.7077]
[1764083164323,0.72630618,2867.8,2867.5,6.97471664]
[1764083164542,4.39169442,2868.2,2867.4,3.71942643]
[1764083164763,4.39169442,2868.2,2867.1,0.92099411]
[1764083164764,1.63129084,2868.1,2867.1,0.1954]
[1764083165056,0.90510394,2867.7,2867.0,3.48787649]
[1764083165348,0.7261869,2867.6,2866.7,3.68338256]
[1764083165642,0.7259325,2867.5,2866.8,0.72559411]
[1764083165841,1.03660394,2867.8,2866.8,0.72559411]
[1764083165842,0.72592981,2867.4,2866.8,0.72559411]
[1764083166044,0.90510394,2867.9,2866.9,0.57006]
[1764083166212,0.90510394,2867.9,2867.0,3.48796651]
[1764083166213,1.63114499,2867.8,2867.0,3.48796651]
[1764083166413,4.21315615,2867.7,2867.0,3.48796651]
[1764083166644,0.72604105,2867.6,2867.0,6.97593302]
[1764083166853,4.52349929,2867.9,2867.0,7.45163302]
[1764083167156,0.72592149,2867.8,2867.1,0.4757]
[1764083167313,0.72592149,2867.7,2867.1,0.4757]
[1764083167509,0.72592149,2867.6,2867.1,0.4757]
[1764083167748,0.72584695,2867.5,2867.0,3.48796651]
[1764083167921,0.1315,2867.8,2866.7,0.1951]
[1764083168110,0.72584364,2867.7,2866.7,4.15910134]
[1764083168458,0.72584364,2867.6,2866.8,1.29565411]
[1764083168625,0.90510394,2868.0,2867.0,0.09436]
[1764083168951,0.72566721,2867.9,2866.8,0.72559411]
[1764083169151,0.72566721,2867.8,2866.8,0.95759411]
[1764083169450,0.1315,2867.9,2866.9,0.4757]
[1764083169619,0.72545047,2867.8,2866.8,0.95759411]
[1764083169826,0.72545047,2867.7,2866.8,0.72559411]
[1764083170043,0.1315,2867.9,2866.8,1.20129411]
[1764083170250,0.72547295,2867.8,2866.9,0.4757]
[1764083170456,4.39168955,2868.2,2867.1,0.72559411]
[1764083170614,0.72533438,2868.1,2867.2,0.232]
[1764083170814,0.72533438,2868.0,2867.2,0.232]
[1764083171051,3.71840573,2868.3,2867.4,0.09436]
[1764083171345,0.72536676,2868.2,2867.1,0.72559411]
[1764083171554,0.72536676,2868.1,2867.2,0.80206]
[1764083171761,3.71838566,2868.3,2867.2,0.80206]
[1764083172063,0.72550276,2868.2,2867.3,0.4757]
[1764083172265,3.48603004,2868.6,2867.5,0.09436]
[1764083172566,3.71796019,2868.7,2867.6,1.29565411]
[1764083172744,0.232,2868.7,2867.8,0.09436]
[1764083173045,3.71793788,2868.7,2867.8,0.57006]
[1764083173233,3.62252615,2868.8,2867.8,0.57006]
[1764083173437,0.232,2869.1,2868.7,0.1954]
[1764083173638,0.72575273,2869.2,2868.2,0.232]
[1764083174150,0.0012,2869.3,2868.1,0.4757]
[1764083174351,6.97154261,2869.3,2868.1,0.7077]
[1764083174551,0.0012,2869.3,2868.2,6.97301442]
[1764083174717,0.0012,2869.3,2868.4,0.405504]
[1764083174934,0.0012,2869.3,2869.2,0.1954]
[1764083175136,0.0012,2869.3,2869.2,0.76546]
[1764083175538,0.0012,2869.3,2869.2,1.170964]
[1764083176437,0.0012,2869.3,2869.2,5.38185017]
[1764083176953,3.48250043,2871.5,2870.3,0.09436]
[1764083177144,0.4016,2871.4,2870.3,0.232]
[1764083177462,0.4016,2871.4,2870.2,0.232]
[1764083177766,0.4016,2871.4,2869.9,0.1954]
[1764083177950,1.12671626,2871.4,2869.9,0.1954]
[1764083178258,2.094114,2871.3,2869.6,0.4274]
[1764083178462,6.96597122,2871.1,2869.7,0.881204]
[1764083178702,0.232,2871.0,2869.5,0.72559411]
[1764083178844,1.35838358,2871.0,2869.5,0.72559411]
[1764083179047,3.48298561,2871.1,2869.9,0.09436]
[1764083179368,0.1335,2870.9,2869.7,0.232]
[1764083179542,0.1335,2870.9,2869.7,0.7077]
[1764083179746,0.1335,2870.9,2869.8,0.4757]
[1764083179968,0.4016,2870.8,2869.6,0.232]
[1764083180277,0.4016,2870.8,2869.4,0.4757]
[1764083180278,0.4016,2870.8,2869.5,0.232]
[1764083180441,3.48347093,2870.7,2869.6,6.96961248]
[1764083180647,6.96694186,2870.7,2869.5,7.20180811]
[1764083180847,0.232,2870.6,2869.5,3.48488043]
[1764083181047,0.232,2870.6,2869.5,6.96980811]
[1764083181344,0.232,2870.6,2869.6,1.20499411]
[1764083181543,0.232,2870.6,2869.7,0.4794]
[1764083182588,3.48371363,2870.5,2869.7,3.96404448]
[1764083182800,3.48371363,2870.5,2869.7,3.48464448]
[1764083183079,3.71564465,2870.6,2869.5,7.20180441]
[1764083183279,3.71559643,2870.6,2869.6,0.405504]
[1764083183595,0.4016,2870.5,2869.3,0.72559411]
[1764083183770,0.4016,2870.5,2869.0,0.6748]
[1764083183771,0.4016,2870.5,2869.1,0.72559411]
[1764083184314,0.4008,2870.5,2869.1,0.72559411]
[1764083184613,10.451505,2870.4,2869.2,3.48529206]
[1764083185472,10.451505,2870.4,2869.0,3.68084323]
[1764083185678,10.451505,2870.4,2869.0,7.16637825]
[1764083186279,0.4008,2870.3,2868.7,0.72559411]
[1764083186477,0.4008,2870.3,2868.0,0.92099411]
[1764083186478,0.1307,2869.1,2868.1,0.4794]
[1764083186652,0.1307,2869.1,2868.3,0.72559411]
[1764083187172,0.1307,2869.1,2868.2,6.97301442]
[1764083187375,0.1307,2869.1,2868.2,7.20501442]
[1764083187572,3.6161317,2869.1,2868.2,7.20501442]
[1764083187886,7.5023634,2869.1,2868.1,3.48661248]
[1764083188184,0.4008,2869.0,2868.0,0.1954]
[1764083188687,0.4008,2869.0,2867.3,0.4794]
[1764083188688,6.97131304,2868.9,2867.3,0.4794]
[1764083188991,0.232,2868.8,2868.1,0.1895]
[1764083189289,0.232,2868.8,2867.7,0.232]
[1764083189656,0.232,2868.8,2867.8,0.57376]
[1764083189857,0.232,2868.8,2867.8,0.4794]
[1764083190599,0.232,2868.8,2867.9,6.97374384]
[1764083190804,0.232,2868.8,2867.9,0.72559411]
[1764083190805,3.71777802,2868.8,2867.9,0.72559411]
[1764083190973,7.60436968,2868.8,2867.9,0.72559411]
[1764083192215,0.4008,2868.7,2867.6,0.72559411]
[1764083192573,6.9720421,2868.6,2867.4,3.9668528]
[1764083192802,10.45806315,2868.6,2867.1,7.20768972]
[1764083193008,0.4008,2868.5,2867.1,7.20768972]
[1764083193222,0.4008,2868.5,2867.0,0.72659411]
[1764083193386,0.4008,2868.5,2867.1,0.4794]
[1764083193576,0.232,2868.8,2867.5,0.09436]
[1764083193779,0.232,2868.8,2867.8,0.09436]
[1764083193977,0.232,2868.8,2867.9,0.4794]
[1764083194179,0.232,2868.8,2867.9,0.57376]
[1764083194386,0.1307,2869.1,2868.1,0.09436]
[1764083194703,0.1307,2869.1,2868.3,0.72559411]
[1764083195185,3.61611624,2869.1,2868.3,0.72559411]
[1764083195381,0.4008,2869.0,2868.2,0.72559411]
[1764083195619,0.6328,2869.0,2867.3,0.4794]
[1764083195822,0.4008,2868.9,2867.3,0.4794]
[1764083196110,0.4008,2868.9,2867.4,0.232]
[1764083196535,0.4008,2868.9,2867.3,0.4794]
[1764083196686,13.94311208,2868.8,2867.0,3.48884847]
[1764083196890,13.94311208,2868.8,2867.1,0.72559411]
[1764083197104,0.4008,2868.7,2867.1,0.72559411]
[1764083197293,0.4008,2868.7,2867.2,0.4794]
[1764083197489,0.232,2868.6,2867.2,0.7114]
[1764083197913,0.4008,2868.5,2867.2,0.7114]
[1764083198089,0.4008,2868.5,2867.1,0.72559411]
[1764083198691,10.45879233,2868.4,2867.2,3.48772321]
[1764083199088,10.45879233,2868.4,2867.1,4.21440471]
[1764083199089,0.4008,2868.3,2867.1,4.21440471]
[1764083199301,0.4008,2868.3,2867.1,7.70224957]
[1764083199488,0.4008,2868.3,2867.1,0.001]
[1764083199696,4.15051326,2867.8,2867.1,0.001]
[1764083199894,0.232,2867.7,2867.1,0.001]
[1764083200105,0.6328,2867.7,2867.1,0.001]
[1764083200510,0.232,2867.6,2867.1,0.001]
[1764083200711,3.71934559,2867.6,2867.1,0.001]
[1764083201528,7.20669118,2867.6,2867.1,0.001]
[1764083201826,0.4008,2867.5,2867.1,0.001]
[1764083202043,0.232,2867.6,2867.1,0.001]
[1764083202238,6.97142008,2868.9,2867.2,0.4794]
[1764083202395,0.1307,2869.1,2867.6,4.15051326]
[1764083202594,0.232,2869.3,2868.0,0.09436]
[1764083202825,3.71722105,2869.3,2868.2,3.48650721]
[1764083203011,0.4008,2869.2,2868.2,3.48650721]
[1764083203211,0.4008,2869.2,2867.9,3.48687192]
[1764083203410,0.4008,2869.2,2867.9,7.69933795]
[1764083203593,0.4008,2869.2,2867.9,8.17873795]
[1764083203919,0.4008,2869.2,2867.9,4.21246603]
[1764083204110,0.4008,2869.2,2867.4,0.7114]
[1764083204323,4.15051326,2869.0,2867.0,0.7124]
[1764083204492,4.15051326,2869.0,2867.2,6.97544642]
[1764083204697,10.45842774,2868.5,2867.1,3.48881793]
[1764083204897,0.232,2868.4,2867.1,3.48881793]
[1764083205127,0.4008,2868.3,2867.1,3.48881793]
[1764083205341,0.4008,2868.3,2867.1,0.001]
[1764083205529,0.4008,2868.3,2867.1,3.48882285]
[1764083206059,0.4008,2868.3,2867.1,0.001]
[1764083206730,10.45952163,2868.2,2867.1,0.001]
[1764083207127,0.4008,2868.1,2867.1,0.001]
[1764083207361,4.15051326,2867.8,2867.1,0.001]
[1764083207564,0.232,2867.7,2867.1,0.001]
[1764083207969,0.232,2867.7,2867.1,0.6699]
[1764083208251,0.2312,2867.7,2867.1,0.6699]
[1764083208822,0.2312,2867.7,2867.2,6.97544642]
[1764083209028,0.232,2868.1,2867.2,7.45484642]
[1764083209227,3.48614258,2868.5,2867.3,1.20499411]
[1764083209444,6.97158445,2868.8,2867.4,0.405504]
[1764083209644,0.232,2868.7,2867.5,0.4794]
[1764083210161,4.3898333,2869.7,2867.5,0.4794]
[1764083210162,3.48444196,2869.9,2868.6,0.1884]
[1764083210460,0.6328,2869.8,2868.6,0.1884]
[1764083210957,3.48468481,2869.7,2868.7,6.97179906]
[1764083211163,0.232,2869.8,2868.7,10.92519859]
[1764083211338,0.232,2869.8,2868.8,1.28745411]
[1764083211530,0.002,2870.6,2869.7,0.1884]
[1764083211732,0.002,2870.6,2870.0,0.405504]
[1764083211928,0.002,2870.6,2870.2,0.405504]
[1764083212229,0.002,2870.6,2870.1,0.79386]
[1764083212230,0.002,2870.6,2870.1,0.56186]
[1764083212435,0.002,2870.6,2870.2,0.4675]
[1764083212960,0.002,2870.6,2869.9,0.72559411]
[1764083213380,0.002,2870.6,2869.9,1.19309411]
[1764083213679,0.002,2870.6,2870.1,0.09436]
[1764083213880,0.002,2870.6,2870.0,0.873004]
[1764083214191,0.002,2870.6,2870.1,0.56186]
[1764083214400,0.002,2870.6,2870.2,0.232]
[1764083214552,0.002,2870.6,2870.4,0.09436]
[1764083215084,0.002,2870.6,2870.1,0.4675]
[1764083215288,0.002,2870.6,2870.2,0.72559411]
[1764083215775,0.002,2870.6,2870.2,0.4675]
[1764083216489,0.002,2871.0,2870.3,0.405504]
[1764083216784,0.002,2871.0,2870.9,0.499864]
[1764083217083,0.002,2871.0,2870.9,4.45059225]